bitfinex-derivatives/quotes_SOLF0:USTF0_20250705
["timestamp","ask_amount","ask_price","bid_price","bid_amount"]
[1751696891734,2.14214915,147.94,147.91,196.32]
[1751696891928,2.14214915,147.93,147.91,196.32]
[1751696892133,6.7579,147.94,147.91,196.32]
[1751696892329,2.14202833,147.93,147.91,196.32]
[1751696892635,6.7579,147.94,147.91,196.32]
[1751696892937,8.90029349,147.93,147.91,196.32]
[1751696893233,6.7583,147.93,147.91,196.32]
[1751696894437,6.7587,147.92,147.91,196.32]
[1751696894634,3.65562746,147.94,147.86,46.08]
[1751696894834,3.65562746,147.92,147.87,198.26]
[1751696895536,3.65562746,147.92,147.85,10.41742746]
[1751696895734,3.65562746,147.92,147.85,49.73562746]
[1751696895934,3.65562746,147.9,147.86,198.22]
[1751696896438,6.7608,147.88,147.85,244.28]
[1751696896638,3.65562746,147.9,147.85,244.28]
[1751696897243,6.30791398,147.88,147.85,244.28]
[1751696897439,5.65513362,147.87,147.85,244.28]
[1751696897636,5.65513362,147.86,147.85,244.28]
[1751696897839,5.65513362,147.86,147.85,46.08]
[1751696898445,6.30791398,147.92,147.87,6.7606]
[1751696898637,11.93922273,147.91,147.88,198.36]
[1751696898836,5.63130875,147.9,147.88,198.36]
[1751696899037,5.63130875,147.89,147.88,198.36]
[1751696900940,5.63130875,147.89,147.88,205.1205]
[1751696902747,5.63130875,147.89,147.88,198.36]
[1751696906548,5.63130875,147.89,147.88,205.1205]
[1751696907856,5.63130875,147.89,147.88,208.77612746]
[1751696914761,5.63130875,147.89,147.88,205.1205]
[1751696919967,5.63130875,147.89,147.88,198.36]
[1751696920756,6.7594,147.91,147.88,198.36]
[1751696921162,6.7594,147.91,147.88,205.1204]
[1751696922470,5.57651303,147.9,147.88,205.1204]
[1751696922766,5.57651303,147.89,147.88,205.1204]
[1751696922961,5.57651303,147.89,147.88,198.36]
[1751696926167,12.33661303,147.89,147.86,6.7612]
[1751696926381,5.57651303,147.88,147.86,204.7612]
[1751696926565,5.57651303,147.87,147.86,204.7612]
[1751696929873,5.57651303,147.87,147.86,6.7612]
[1751696930075,5.57651303,147.87,147.86,204.6612]
[1751696930371,5.57651303,147.87,147.86,6.7612]
[1751696930572,5.57651303,147.87,147.86,204.6212]
[1751696937979,5.57651303,147.87,147.86,206.96110048]
[1751696946290,5.57651303,147.87,147.86,2.33990048]
[1751696946587,5.57651303,147.87,147.86,197.54]
[1751696946987,5.57651303,147.87,147.86,199.87990048]
[1751696947185,5.57651303,147.87,147.86,197.54]
[1751696947586,5.57651303,147.87,147.86,199.87990048]
[1751696948889,5.57651303,147.87,147.86,2.33990048]
[1751696949077,5.57651303,147.87,147.86,199.85990048]
[1751696949988,12.33751303,147.87,147.86,199.85990048]
[1751696950190,18.65075715,147.87,147.86,197.52]
[1751696950393,18.73654166,147.87,147.86,197.52]
[1751696950890,18.73654166,147.87,147.86,197.42]
[1751696951289,18.73654166,147.87,147.85,48.41990048]
[1751696951491,5.65491235,147.86,147.85,245.81990048]
[1751696952093,12.41631235,147.86,147.85,48.41990048]
[1751696952295,20.7624588,147.86,147.81,2.33990048]
[1751696952588,13.0801307,147.84,147.82,197.36]
[1751696952793,5.65491235,147.83,147.82,197.36]
[1751696953789,12.41781235,147.83,147.82,197.38]
[1751696954101,12.41781235,147.83,147.82,197.36]
[1751696954394,5.65491235,147.83,147.79,583.92]
[1751696954594,5.65491235,147.82,147.81,2.33990048]
[1751696956094,5.66721229,147.82,147.81,2.33990048]
[1751696956991,5.66721229,147.82,147.81,197.36]
[1751696957588,5.66721229,147.82,147.81,199.69990048]
[1751696958093,6.31039423,147.86,147.81,199.69990048]
[1751696958293,5.66398955,147.85,147.83,2.33990048]
[1751696958495,6.7617,147.86,147.83,2.33990048]
[1751696958791,5.66348258,147.85,147.83,2.33990048]
[1751696958987,5.66348258,147.84,147.83,2.33990048]
[1751696960795,5.66348258,147.84,147.83,197.18]
[1751696961093,5.66348258,147.84,147.83,2.33990048]
[1751696961595,5.66348258,147.84,147.83,9.10270048]
[1751696961790,5.66348258,147.84,147.83,2.33990048]
[1751696962096,5.64028781,147.84,147.83,2.33990048]
[1751696962592,5.64028781,147.84,147.83,9.10270048]
[1751696968995,8.64533483,147.89,147.85,6.7618]
[1751696969199,5.65940807,147.88,147.85,206.06170048]
[1751696969395,5.65940807,147.87,147.85,206.06170048]
[1751696969590,5.65940807,147.86,147.85,206.06170048]
[1751696969787,5.65940807,147.86,147.85,196.96]
[1751696969990,5.65940807,147.86,147.85,199.29990048]
[1751696973496,5.65940807,147.86,147.85,196.96]
[1751696974294,12.42080807,147.86,147.85,196.96]
[1751696975199,12.42080807,147.86,147.84,2.33990048]
[1751696975397,5.65940807,147.85,147.84,2.33990048]
[1751696975596,12.42130807,147.85,147.84,2.33990048]
[1751696977698,5.65940807,147.85,147.84,2.33990048]
[1751696979102,5.65940807,147.85,147.83,6.7628]
[1751696979301,5.65940807,147.84,147.83,196.78]
[1751696979495,5.65940807,147.84,147.83,199.11990048]
[1751696980201,5.65940807,147.84,147.83,205.88270048]
[1751696980500,6.30543435,147.87,147.83,205.88270048]
[1751696980501,6.30543435,147.88,147.83,199.11990048]
[1751696980702,13.06443435,147.92,147.88,6.7602]
[1751696980901,6.30543435,147.92,147.9,2.33990048]
[1751696981201,6.30543435,147.92,147.91,2.33990048]
[1751696981500,6.30543435,147.93,147.91,2.33990048]
[1751696981699,6.30543435,147.93,147.92,2.33990048]
[1751696981901,8.41765882,147.95,147.92,2.33990048]
[1751696982198,4.4009022,147.94,147.92,2.33990048]
[1751696982501,6.31090035,147.94,147.91,2.33990048]
[1751696982897,6.7587,147.93,147.91,2.33990048]
[1751696983097,13.06960035,147.93,147.91,2.33990048]
[1751696983499,6.7587,147.93,147.91,2.33990048]
[1751696983904,6.7587,147.93,147.89,207.09379595]
[1751696985197,6.7587,147.93,147.89,203.4399]
[1751696985404,6.31090035,147.94,147.89,196.68]
[1751696985808,6.31090035,147.93,147.89,196.68]
[1751696986499,6.7593,147.91,147.89,196.68]
[1751696989406,6.7589,147.92,147.89,196.68]
[1751696990507,6.7592,147.91,147.89,196.68]
[1751696993705,5.657696,147.9,147.89,196.68]
[1751696995413,6.7592,147.91,147.89,196.68]
[1751696995913,6.7596,147.9,147.89,196.68]
[1751696996314,6.31090035,147.94,147.89,196.68]
[1751696996515,12.41424413,147.93,147.89,196.68]
[1751696996712,5.65564413,147.92,147.89,196.68]
[1751696996914,6.31090035,147.95,147.89,196.68]
[1751696996915,5.65564413,147.91,147.89,196.68]
[1751696997113,6.31090035,147.95,147.89,196.68]
[1751696997412,5.65564413,147.94,147.89,196.68]
[1751696997608,6.7588,147.92,147.89,203.4399]
[1751696997810,5.65564413,147.91,147.89,203.4399]
[1751696998010,6.7588,147.92,147.89,203.4399]
[1751696998309,5.65556896,147.91,147.89,203.4399]
[1751696998510,6.7588,147.92,147.89,203.4399]
[1751696998710,5.6500907,147.91,147.89,203.4399]
[1751696998909,6.7588,147.92,147.89,203.4399]
[1751696999110,5.6500907,147.91,147.89,203.4399]
[1751696999310,6.7588,147.92,147.89,203.4399]
[1751696999605,5.65035089,147.91,147.89,203.4399]
[1751696999809,6.7588,147.92,147.89,203.4399]
[1751697000317,5.65072387,147.91,147.89,203.4399]
[1751697000516,6.7588,147.92,147.89,203.4399]
[1751697000717,5.65072387,147.91,147.89,203.4399]
[1751697001019,6.7588,147.92,147.89,203.4399]
[1751697001221,5.65072387,147.91,147.9,6.7596]
[1751697003213,5.65072387,147.91,147.89,203.4398]
[1751697003510,9.9647963,147.95,147.89,203.4398]
[1751697003708,5.65758931,147.94,147.89,203.4398]
[1751697003912,5.65758931,147.93,147.89,203.4398]
[1751697004206,5.65758931,147.92,147.89,203.4398]
[1751697004408,5.65758931,147.91,147.89,203.4398]
[1751697004616,9.9647963,147.95,147.89,203.4398]
[1751697004814,5.65796564,147.94,147.89,203.4398]
[1751697005014,12.41656564,147.93,147.89,203.4398]
[1751697005216,5.65796564,147.92,147.89,203.4398]
[1751697005415,5.65796564,147.91,147.89,203.4398]
[1751697005617,6.7588,147.92,147.89,203.4398]
[1751697005817,5.65847534,147.91,147.9,2.33880608]
[1751697006119,5.65847534,147.91,147.89,203.4398]
[1751697006319,6.7588,147.92,147.9,2.33880608]
[1751697006523,5.65884389,147.91,147.9,2.33880608]
[1751697010417,5.65884389,147.91,147.87,46.98]
[1751697010717,5.66654127,147.9,147.87,49.31880608]
[1751697010924,8.64970643,147.91,147.87,49.31880608]
[1751697010925,12.42684127,147.89,147.87,49.31880608]
[1751697011114,5.66654127,147.88,147.87,49.31880608]
[1751697012720,5.66654127,147.88,147.87,46.98]
[1751697012918,5.66654127,147.88,147.87,49.31880608]
[1751697013118,10.8191338,147.93,147.87,49.31880608]
[1751697013119,8.71550035,147.93,147.87,49.31880608]
[1751697013319,5.66803288,147.92,147.91,2.33880608]
[1751697013817,12.42693288,147.92,147.9,195.68]
[1751697014011,5.66803288,147.91,147.9,195.68]
[1751697016119,5.66803288,147.91,147.9,199.33390474]
[1751697022432,5.66803288,147.91,147.9,195.68]
[1751697022929,5.66803288,147.91,147.9,202.4396]
[1751697024326,6.31090035,147.95,147.93,6.7582]
[1751697024630,5.68780921,147.94,147.93,10.41210474]
[1751697025022,5.68780921,147.94,147.93,6.7582]
[1751697025226,5.68780921,147.94,147.93,10.41210474]
[1751697032639,5.68780921,147.94,147.93,3.65390474]
[1751697032836,5.68780921,147.94,147.92,46.42]
[1751697033040,17.02672724,147.93,147.87,241.86]
[1751697033239,6.7599,147.9,147.87,53.1608]
[1751697033538,5.68780921,147.89,147.87,46.4]
[1751697033735,5.68780921,147.88,147.87,46.4]
[1751697034544,10.46731005,147.88,147.87,46.4]
[1751697036646,10.46731005,147.88,147.86,195.56]
[1751697036838,5.68780921,147.87,147.86,195.56]
[1751697040150,5.68780921,147.87,147.86,202.3214]
[1751697041349,6.7599,147.9,147.86,202.3214]
[1751697041549,5.66672306,147.89,147.86,202.3214]
[1751697041748,5.66672306,147.88,147.86,202.3214]
[1751697042048,6.7599,147.9,147.86,202.3214]
[1751697042249,5.66672312,147.89,147.86,202.3214]
[1751697042446,5.66672312,147.88,147.86,202.3214]
[1751697042650,6.31090035,147.91,147.86,199.21390474]
[1751697042843,5.66056364,147.9,147.86,199.21390474]
[1751697043149,2.3144,147.92,147.86,199.21390474]
[1751697043452,10.35680232,147.91,147.86,199.21390474]
[1751697043647,5.66031646,147.9,147.86,199.21390474]
[1751697043846,5.66031646,147.89,147.86,199.21390474]
[1751697044149,6.7592,147.91,147.88,6.7602]
[1751697044350,5.66021216,147.9,147.89,195.46]
[1751697045547,6.30742485,147.92,147.89,195.46]
[1751697045751,18.01196724,148.0,147.9,46.42]
[1751697045752,6.30742485,147.93,147.9,46.42]
[1751697045954,6.30742485,147.94,147.91,3.65390474]
[1751697046146,6.757,147.96,147.93,6.7582]
[1751697046450,4.69433943,147.95,147.93,195.58]
[1751697046648,6.30742485,147.97,147.93,195.58]
[1751697046857,4.6937138,147.96,147.93,202.3381]
[1751697047047,13.06402485,147.97,147.93,202.3381]
[1751697047246,4.69395703,147.96,147.93,202.3381]
[1751697047455,6.7566,147.97,147.93,202.3381]
[1751697047755,4.69332462,147.96,147.93,202.3381]
[1751697048056,6.7566,147.97,147.93,202.3381]
[1751697048255,4.69312143,147.96,147.93,202.3381]
[1751697048553,6.7566,147.97,147.93,202.3381]
[1751697048754,4.69245925,147.96,147.93,202.3381]
[1751697048952,13.06362485,147.98,147.94,6.7577]
[1751697049150,4.69245925,147.97,147.94,6.7577]
[1751697049351,4.69245925,147.96,147.94,6.7577]
[1751697049651,13.06362485,147.98,147.94,6.7577]
[1751697049851,4.70160133,147.97,147.94,6.7577]
[1751697050050,4.70160133,147.96,147.94,6.7577]
[1751697050247,13.06362485,147.98,147.94,6.7577]
[1751697050453,4.7007001,147.97,147.94,6.7577]
[1751697050656,13.06362485,147.98,147.94,6.7577]
[1751697050857,4.7007001,147.97,147.94,6.7577]
[1751697051156,13.06362485,147.98,147.94,6.7577]
[1751697051358,11.45648438,147.97,147.94,6.7577]
[1751697051557,6.7564,147.97,147.94,6.7577]
[1751697052353,13.06352485,147.98,147.94,6.7577]
[1751697052561,4.74826473,147.97,147.95,3.65390474]
[1751697052860,4.38256327,147.99,147.95,3.65390474]
[1751697053166,4.74762056,147.98,147.95,3.65390474]
[1751697053355,11.13836327,147.99,147.95,10.41080474]
[1751697053663,4.74647235,147.98,147.95,10.41080474]
[1751697053855,11.13836327,147.99,147.95,10.41080474]
[1751697054060,4.74647235,147.98,147.95,10.41080474]
[1751697054362,11.13836327,147.99,147.95,56.81080474]
[1751697054660,4.74542872,147.98,147.95,56.81080474]
[1751697054849,11.13836327,147.99,147.95,56.81080474]
[1751697055051,4.74542872,147.98,147.95,46.4]
[1751697055249,4.38256327,147.99,147.95,46.4]
[1751697055250,4.74481505,147.97,147.95,46.4]
[1751697055558,10.68998812,147.99,147.95,46.4]
[1751697055755,6.7567,147.97,147.95,46.4]
[1751697055955,10.68998812,147.99,147.95,46.4]
[1751697056149,4.74487944,147.98,147.92,3.65390474]
[1751697056360,6.7578,147.94,147.91,248.6791]
[1751697057559,6.7578,147.94,147.91,53.1391]
[1751697057858,5.6340159,147.93,147.91,241.88]
[1751697058066,9.96132959,147.97,147.91,46.38]
[1751697058359,10.38019067,147.96,147.91,241.9]
[1751697058556,6.7583,147.93,147.91,46.38]
[1751697058752,6.30742485,147.96,147.91,241.9]
[1751697058949,10.40995493,147.95,147.91,46.38]
[1751697059154,10.40995493,147.94,147.91,46.38]
[1751697059359,12.39288538,147.93,147.91,46.38]
[1751697059561,5.63428538,147.92,147.91,46.38]
[1751697059760,6.7576,147.95,147.91,46.38]
[1751697059959,10.41586172,147.94,147.91,53.1389]
[1751697060159,5.64004983,147.93,147.91,53.1389]
[1751697060359,6.7576,147.95,147.91,53.1389]
[1751697060558,5.63982261,147.94,147.91,53.1389]
[1751697060758,5.63982261,147.93,147.91,53.1389]
[1751697060955,6.7576,147.95,147.91,53.1389]
[1751697061163,5.63955775,147.94,147.91,53.1389]
[1751697061363,6.7576,147.95,147.91,53.1389]
[1751697061364,5.63955775,147.93,147.91,53.1389]
[1751697061655,6.7576,147.95,147.91,53.1389]
[1751697061862,5.63968968,147.94,147.91,53.1389]
[1751697062051,5.63968968,147.93,147.91,46.38]
[1751697062252,6.30742485,147.96,147.91,46.38]
[1751697062456,10.41618081,147.95,147.91,46.38]
[1751697062660,6.7585,147.93,147.91,46.38]
[1751697063252,5.64011243,147.92,147.91,46.38]
[1751697065865,12.39881243,147.92,147.91,46.38]
[1751697066067,5.64011243,147.92,147.89,195.6]
[1751697066365,6.7595,147.91,147.89,195.6]
[1751697066761,5.62993007,147.9,147.89,195.6]
[1751697066969,6.7598,147.9,147.87,56.81470474]
[1751697067165,6.30742485,147.94,147.87,50.05390474]
[1751697067461,10.36024461,147.93,147.87,50.05390474]
[1751697067765,10.36024461,147.92,147.88,195.6]
[1751697067963,5.62171597,147.91,147.88,195.6]
[1751697068161,5.62171597,147.9,147.88,195.6]
[1751697068357,5.62171597,147.9,147.87,46.4]
[1751697068358,9.96132959,147.93,147.87,46.4]
[1751697068556,10.35969592,147.92,147.87,241.98]
[1751697068758,10.35969592,147.91,147.89,6.7599]
[1751697068959,5.62168267,147.9,147.88,3.65390474]
[1751697069162,6.759,147.92,147.88,3.65390474]
[1751697069457,5.60992914,147.91,147.88,6.7604]
[1751697069653,6.759,147.92,147.88,10.41430474]
[1751697069866,5.6095852,147.91,147.89,6.76]
[1751697070059,6.759,147.92,147.89,6.76]
[1751697070256,5.60950954,147.91,147.89,6.76]
[1751697070455,6.30742485,147.94,147.9,10.41310474]
[1751697070659,10.36485569,147.93,147.91,195.66]
[1751697070867,5.60933214,147.92,147.91,195.66]
[1751697074869,5.60933214,147.92,147.91,202.4191]
[1751697075262,6.29786411,147.96,147.91,202.4191]
[1751697075466,5.60979023,147.95,147.92,3.65390474]
[1751697075666,5.60979023,147.94,147.92,3.65390474]
[1751697075869,5.60979023,147.93,147.92,3.65390474]
[1751697080771,6.7578,147.94,147.92,3.65390474]
[1751697083170,5.61994151,147.93,147.92,3.65390474]
[1751697083572,5.61994151,147.93,147.91,199.31390474]
[1751697083772,6.7578,147.94,147.91,199.31390474]
[1751697083971,5.62007416,147.93,147.91,199.31390474]
[1751697084178,6.7578,147.94,147.91,199.31390474]
[1751697084472,5.62135634,147.93,147.91,199.31390474]
[1751697084661,6.7578,147.94,147.91,199.31390474]
[1751697084865,5.62135634,147.93,147.91,199.31390474]
[1751697085066,6.7578,147.94,147.91,199.31390474]
[1751697085269,5.62252719,147.93,147.91,199.31390474]
[1751697085469,5.62252719,147.92,147.91,199.31390474]
[1751697086170,12.38122719,147.92,147.91,195.66]
[1751697086372,5.62252719,147.92,147.91,195.66]
[1751697087176,10.4071742,147.92,147.9,3.65390474]
[1751697087371,6.7585,147.93,147.91,195.34]
[1751697087571,10.41041238,147.92,147.91,195.34]
[1751697088178,17.16911238,147.92,147.91,195.34]
[1751697088780,10.41041238,147.92,147.91,195.34]
[1751697092377,4.78464701,147.92,147.91,195.34]
[1751697092579,10.42443279,147.92,147.91,195.34]
[1751697095284,5.63978578,147.92,147.91,195.34]
[1751697097083,10.41777542,147.92,147.91,195.34]
[1751697097777,5.63978578,147.92,147.91,202.0991]
[1751697098780,6.31317323,147.95,147.93,6.7581]
[1751697098985,6.31317323,147.95,147.94,198.99390474]
[1751697099179,11.08642792,147.95,147.94,198.99390474]
[1751697099573,4.77325469,147.95,147.94,198.99390474]
[1751697100477,4.77325469,147.95,147.94,205.75170474]
[1751697100880,6.31317323,147.98,147.94,198.99390474]
[1751697101078,4.79408659,147.97,147.96,10.41050474]
[1751697101282,4.38256327,147.99,147.96,3.65390474]
[1751697101283,10.6957365,147.99,147.96,3.65390474]
[1751697101476,4.38256327,147.99,147.98,3.65390474]
[1751697101678,4.38256327,147.99,147.98,10.40980474]
[1751697103775,6.31317323,148.03,147.98,10.40980474]
[1751697103776,6.31317323,148.04,147.98,3.65390474]
[1751697103981,6.31317323,148.05,148.02,3.65390474]
[1751697104286,6.83613136,148.06,148.03,195.3]
[1751697104287,6.7532,148.04,148.03,195.3]
[1751697105191,6.31317323,148.04,147.95,583.64]
[1751697105374,6.31317323,148.04,147.98,3.65390474]
[1751697105574,6.7546,148.01,147.98,3.65390474]
[1751697107482,6.7546,148.01,147.99,195.4]
[1751697107683,6.7546,148.01,148.0,195.34]
[1751697107883,6.7546,148.01,147.97,6.7561]
[1751697108195,6.7551,148.0,147.98,195.34]
[1751697108985,6.7547,148.01,147.98,195.34]
[1751697109185,6.31317323,148.04,147.98,202.0959]
[1751697109784,6.7544,148.02,147.98,202.0959]
[1751697110790,5.65105626,148.01,147.98,202.0959]
[1751697110991,5.65105626,148.0,147.98,195.34]
[1751697111186,6.7547,148.01,147.98,195.34]
[1751697111392,5.6501005,148.0,147.98,195.34]
[1751697111593,6.7547,148.01,147.98,195.34]
[1751697111791,5.6501005,148.0,147.98,195.34]
[1751697111989,6.7547,148.01,147.98,195.34]
[1751697112191,5.6501005,148.0,147.98,195.34]
[1751697112392,6.7547,148.01,147.98,195.34]
[1751697112593,5.64408319,148.0,147.98,202.0959]
[1751697112895,6.7547,148.01,147.98,202.0959]
[1751697113089,5.64408319,148.0,147.98,202.0959]
[1751697113289,6.7547,148.01,147.98,202.0959]
[1751697113489,5.64403472,148.0,147.98,202.0959]
[1751697113691,6.7547,148.01,147.98,195.34]
[1751697113894,5.64403472,148.0,147.98,195.34]
[1751697114090,6.7547,148.01,147.99,195.26]
[1751697114297,5.64450626,148.0,147.99,195.26]
[1751697116494,6.754,148.03,147.99,198.91390474]
[1751697116797,5.64448665,148.02,147.99,198.91390474]
[1751697117097,5.64448665,148.01,147.99,205.66940474]
[1751697117301,6.754,148.03,147.99,205.66940474]
[1751697117499,5.64385074,148.02,147.99,205.66940474]
[1751697117798,5.64385074,148.01,147.99,205.66940474]
[1751697117999,6.754,148.03,147.99,205.66940474]
[1751697118195,5.64385074,148.02,147.99,205.66940474]
[1751697118496,5.64385074,148.01,147.99,205.66940474]
[1751697118693,6.754,148.03,147.99,205.66940474]
[1751697118998,5.64886596,148.02,147.99,205.66940474]
[1751697119196,5.64886596,148.01,147.99,205.66940474]
[1751697119395,6.754,148.03,147.99,205.66940474]
[1751697119695,5.64841499,148.02,147.99,205.66940474]
[1751697119895,5.64841499,148.01,147.99,205.66940474]
[1751697120096,6.7542,148.02,147.99,205.66940474]
[1751697120396,5.64833269,148.01,147.99,205.66940474]
[1751697120601,6.7542,148.02,147.99,205.66940474]
[1751697120897,10.82477323,148.05,147.99,198.91390474]
[1751697120898,12.40303269,148.01,147.99,198.91390474]
[1751697121100,6.7547,148.01,147.99,198.91390474]
[1751697121299,6.31317323,148.04,147.99,198.91390474]
[1751697121499,10.42029451,148.03,147.99,198.91390474]
[1751697121797,10.42029451,148.02,147.99,198.91390474]
[1751697121996,5.64830503,148.01,147.99,195.26]
[1751697122193,6.31317323,148.04,147.99,195.26]
[1751697122390,10.42014251,148.03,147.99,195.26]
[1751697122593,10.42014251,148.02,147.99,195.26]
[1751697122795,5.64836464,148.01,147.99,195.26]
[1751697122994,5.64836464,148.0,147.99,195.26]
[1751697123694,12.40336464,148.0,147.99,195.26]
[1751697124100,5.64836464,148.0,147.99,195.26]
[1751697125803,5.64836464,148.0,147.99,205.66940474]
[1751697126101,6.7543,148.02,147.99,205.66940474]
[1751697126302,5.64889254,148.01,147.99,205.66940474]
[1751697126503,6.7538,148.03,147.99,205.66940474]
[1751697126704,5.64855131,148.02,147.99,195.26]
[1751697127002,12.40345131,148.01,147.99,195.26]
[1751697127195,5.64855131,148.0,147.99,195.26]
[1751697127703,12.40355131,148.0,147.99,195.26]
[1751697127903,12.40355131,148.0,147.96,56.77050474]
[1751697128100,5.64855131,147.99,147.97,195.22]
[1751697128303,6.755,148.0,147.97,195.22]
[1751697128504,5.64137514,147.99,147.97,195.22]
[1751697128701,6.755,148.0,147.97,195.22]
[1751697128901,5.64137454,147.99,147.97,201.9763]
[1751697129103,6.755,148.0,147.97,201.9763]
[1751697129303,5.6416984,147.99,147.97,201.9763]
[1751697129504,6.755,148.0,147.97,201.9763]
[1751697129803,5.6416984,147.99,147.97,201.9763]
[1751697130003,6.7541,148.02,147.99,6.7554]
[1751697130200,10.39894455,148.01,147.97,198.87390474]
[1751697130409,5.6416984,148.0,147.97,198.87390474]
[1751697130605,50.8516,148.05,147.97,198.87390474]
[1751697130606,6.28556047,148.03,147.97,198.87390474]
[1751697130806,6.7548,148.01,147.97,205.63000474]
[1751697131103,5.64181807,148.0,147.97,205.63000474]
[1751697131308,6.7548,148.01,147.97,205.63000474]
[1751697131499,5.64237702,148.0,147.98,6.7559]
[1751697131701,6.7548,148.01,147.98,6.7559]
[1751697131900,5.64237517,148.0,147.98,6.7559]
[1751697132100,6.7548,148.01,147.98,6.7559]
[1751697132403,5.64319225,148.0,147.98,6.7559]
[1751697132704,6.7548,148.01,147.98,6.7559]
[1751697132902,5.63201892,148.0,147.98,6.7559]
[1751697133098,6.7543,148.02,147.99,10.40940474]
[1751697133297,5.63221056,148.01,147.99,3.65390474]
[1751697133506,5.63221056,148.0,147.99,3.65390474]
[1751697134899,5.63334262,148.0,147.99,3.65390474]
[1751697135408,5.63334262,148.0,147.98,6.7555]
[1751697135604,6.7546,148.01,147.98,10.40940474]
[1751697135804,5.63435963,148.0,147.99,6.7555]
[1751697136607,5.63435963,148.0,147.98,10.40970474]
[1751697136808,6.7547,148.01,147.98,10.40970474]
[1751697137009,5.63585202,148.0,147.98,10.40970474]
[1751697137205,6.7547,148.01,147.98,10.40970474]
[1751697137405,5.63754727,148.0,147.98,10.40970474]
[1751697137607,6.7547,148.01,147.98,10.40970474]
[1751697137809,5.64873224,148.0,147.98,10.40970474]
[1751697138004,6.7547,148.01,147.98,10.40970474]
[1751697138209,5.64873224,148.0,147.98,10.40970474]
[1751697138406,6.7547,148.01,147.98,10.40970474]
[1751697138610,5.65066792,148.0,147.98,10.40970474]
[1751697138809,6.7547,148.01,147.98,10.40970474]
[1751697139010,5.65066792,148.0,147.98,10.40970474]
[1751697139312,5.65262498,147.99,147.98,10.40970474]
[1751697141906,5.65262498,147.99,147.97,201.9762]
[1751697142109,5.65262498,147.98,147.97,201.9762]
[1751697145210,10.43509119,147.98,147.97,201.9762]
[1751697145407,10.43509119,147.98,147.97,195.22]
[1751697147116,10.42622087,147.98,147.97,195.22]
[1751697147618,16.71633501,147.98,147.97,195.22]
[1751697147818,10.42622087,147.98,147.97,195.22]
[1751697148011,10.42622087,147.98,147.96,53.1167]
[1751697148211,13.04571414,147.99,147.97,195.22]
[1751697148412,10.43378324,147.98,147.97,195.22]
[1751697150919,16.72389738,147.98,147.97,195.22]
[1751697152017,16.72389738,147.98,147.96,46.36]
[1751697152226,10.43378324,147.97,147.96,46.36]
[1751697152418,17.27444699,147.97,147.93,3.65390474]
[1751697152723,17.27444699,147.97,147.92,46.34]
[1751697152724,23.59573373,147.96,147.94,195.22]
[1751697153021,18.84831704,147.95,147.88,49.99390474]
[1751697153324,6.7594,147.91,147.89,195.22]
[1751697153619,5.66040037,147.9,147.89,195.22]
[1751697153820,5.66040037,147.9,147.88,46.34]
[1751697154023,5.72930842,147.89,147.88,243.89930064]
[1751697154325,5.72930842,147.89,147.88,241.56]
[1751697154716,5.72930842,147.89,147.88,243.89930064]
[1751697155017,5.72930842,147.89,147.88,250.65980064]
[1751697155215,6.32321223,147.92,147.88,243.89930064]
[1751697155424,6.32321223,147.94,147.91,2.33930064]
[1751697155614,11.4654778,147.93,147.92,197.55930064]
[1751697155822,4.64184849,147.93,147.92,195.22]
[1751697156018,4.64184849,147.93,147.92,198.87334467]
[1751697156229,6.32321223,147.96,147.92,198.87334467]
[1751697156414,4.63887122,147.95,147.92,198.87334467]
[1751697156617,6.32321223,147.96,147.92,198.87334467]
[1751697156820,4.63855746,147.95,147.92,198.87334467]
[1751697157019,6.7574,147.95,147.92,198.87334467]
[1751697159830,6.7574,147.95,147.92,195.22]
[1751697160527,6.757,147.96,147.92,201.9785]
[1751697161223,6.7575,147.95,147.92,201.9785]
[1751697162223,6.757,147.96,147.93,6.7582]
[1751697162424,6.32321223,147.98,147.92,195.22]
[1751697162625,4.56974964,147.97,147.92,195.22]
[1751697162821,6.7572,147.96,147.92,201.9784]
[1751697163026,9.9765569,147.98,147.92,195.22]
[1751697163221,10.89261443,147.97,147.92,195.22]
[1751697163425,4.5694022,147.96,147.92,195.22]